bitfinex/quotes_BTCUSD_20250709
["timestamp","ask_amount","ask_price","bid_price","bid_amount"]
[1752077073557,0.76561087,109230.0,109220.0,0.23960338]
[1752077075524,0.67417394,109230.0,109220.0,0.23960338]
[1752077076602,0.67255394,109230.0,109220.0,0.23960338]
[1752077076807,0.67417394,109230.0,109220.0,0.23960338]
[1752077076994,0.67445204,109230.0,109220.0,0.23960338]
[1752077079332,0.67445204,109230.0,109220.0,0.23956338]
[1752077079722,0.67445204,109230.0,109220.0,0.10000338]
[1752077079914,0.67445204,109230.0,109220.0,0.23956338]
[1752077080316,0.76390102,109230.0,109220.0,0.23956338]
[1752077081692,1.14388534,109230.0,109220.0,0.10000338]
[1752077081805,1.48388534,109230.0,109220.0,0.10000338]
[1752077082032,1.62344534,109230.0,109220.0,0.10000338]
[1752077082236,1.63798619,109230.0,109220.0,4e-05]
[1752077082591,1.67095097,109230.0,109220.0,4e-05]
[1752077083227,1.66895097,109230.0,109220.0,4e-05]
[1752077083466,1.63598619,109230.0,109220.0,4e-05]
[1752077083671,1.64098619,109230.0,109220.0,4e-05]
[1752077084058,1.63998619,109230.0,109220.0,4e-05]
[1752077084221,1.64298619,109230.0,109220.0,4e-05]
[1752077084648,1.67593834,109230.0,109220.0,4e-05]
[1752077086499,1.77242834,109230.0,109220.0,4e-05]
[1752077086701,1.67593834,109230.0,109220.0,4e-05]
[1752077093011,1.67588791,109230.0,109220.0,4e-05]
[1752077098688,0.95412727,109230.0,109220.0,4e-05]
[1752077098929,1.27374671,109230.0,109220.0,4e-05]
[1752077099171,1.11984586,109230.0,109220.0,4e-05]
[1752077099360,1.25924586,109230.0,109220.0,4e-05]
[1752077099644,1.29214617,109230.0,109220.0,4e-05]
[1752077101060,1.2921418,109230.0,109220.0,4e-05]
[1752077106555,1.2920618,109230.0,109220.0,4e-05]
[1752077110015,0.93954501,109230.0,109220.0,4e-05]
[1752077110244,1.2920618,109230.0,109220.0,4e-05]
[1752077110543,1.1527418,109230.0,109220.0,4e-05]
[1752077110758,1.2919818,109230.0,109220.0,4e-05]
[1752077111911,1.66178955,109230.0,109220.0,4e-05]
[1752077113347,0.95675597,109230.0,109220.0,4e-05]
[1752077113580,0.93952597,109230.0,109220.0,4e-05]
[1752077113829,1.29204276,109230.0,109220.0,4e-05]
[1752077115393,1.28998276,109230.0,109220.0,4e-05]
[1752077115599,1.29204276,109230.0,109220.0,4e-05]
[1752077116184,1.29367276,109230.0,109220.0,0.01718644]
[1752077116975,1.29204276,109230.0,109220.0,0.01718644]
[1752077117346,0.71083699,109230.0,109220.0,0.03593644]
[1752077117563,1.18647378,109230.0,109220.0,0.03806644]
[1752077119494,0.83395699,109230.0,109220.0,0.03806644]
[1752077119900,0.69257699,109230.0,109220.0,0.05376644]
[1752077120112,0.58329392,109230.0,109220.0,0.05376644]
[1752077120908,0.90820446,109230.0,109220.0,0.05376644]
[1752077121184,0.76892446,109230.0,109220.0,0.05376644]
[1752077121391,0.76892446,109230.0,109220.0,0.03806644]
[1752077122343,0.76892446,109230.0,109220.0,0.02092]
[1752077122478,0.90832446,109230.0,109220.0,0.02092]
[1752077123066,0.55589992,109230.0,109220.0,0.02092]
[1752077123478,0.90832446,109230.0,109220.0,0.02092]
[1752077124141,0.55589992,109230.0,109220.0,0.02092]
[1752077124407,0.90832446,109230.0,109220.0,0.02092]
[1752077124921,0.55589992,109230.0,109220.0,0.02092]
[1752077125117,0.90832446,109230.0,109220.0,0.02092]
[1752077125741,0.55589992,109230.0,109220.0,0.02092]
[1752077125954,0.90832446,109230.0,109220.0,0.02092]
[1752077128158,0.91030446,109230.0,109220.0,0.02092]
[1752077130202,0.55787992,109230.0,109220.0,0.02092]
[1752077130397,0.91030446,109230.0,109220.0,0.02092]
[1752077130636,0.55787992,109230.0,109220.0,0.02092]
[1752077130821,0.91030446,109230.0,109220.0,0.02092]
[1752077131362,0.92670446,109230.0,109220.0,0.01574]
[1752077131581,0.57598992,109230.0,109220.0,4e-05]
[1752077131807,1.324756,109230.0,109220.0,4e-05]
[1752077132114,1.33929685,109230.0,109220.0,4e-05]
[1752077132326,1.67929685,109230.0,109220.0,4e-05]
[1752077132531,1.72051094,109230.0,109220.0,4e-05]
[1752077132738,2.21671094,109230.0,109220.0,4e-05]
[1752077132968,2.21714646,109230.0,109220.0,4e-05]
[1752077134240,2.21414646,109230.0,109220.0,4e-05]
[1752077134652,2.21914646,109230.0,109220.0,4e-05]
[1752077135064,2.21545646,109230.0,109220.0,4e-05]
[1752077135280,2.21914646,109230.0,109220.0,4e-05]
[1752077136142,2.21914646,109230.0,109220.0,0.01717881]
[1752077136610,2.21414646,109230.0,109220.0,0.01717881]
[1752077137052,2.21414646,109230.0,109220.0,0.01817881]
[1752077137053,2.21814646,109230.0,109220.0,0.01817881]
[1752077143934,2.21929145,109230.0,109220.0,1e-08]
[1752077144110,0.29100315,109220.0,109210.0,4e-05]
[1752077144345,0.99909058,109220.0,109210.0,4e-05]
[1752077145048,1.0259185,109220.0,109210.0,4e-05]
[1752077145231,1.0534405,109220.0,109210.0,4e-05]
[1752077145880,0.92851947,109210.0,109200.0,1e-08]
[1752077146085,0.92851947,109210.0,109200.0,4.65e-05]
[1752077146086,1.24154941,109210.0,109200.0,4.65e-05]
[1752077146261,1.24154941,109210.0,109200.0,1e-08]
[1752077147762,1.26907441,109210.0,109200.0,1e-08]
[1752077148232,1.23810314,109210.0,109200.0,1e-08]
[1752077148430,1.27103437,109210.0,109200.0,1e-08]
[1752077150180,1.31219841,109210.0,109200.0,1e-08]
[1752077150403,1.80839841,109210.0,109200.0,1e-08]
[1752077150620,2.16104071,109210.0,109200.0,1e-08]
[1752077150858,0.21623103,109200.0,109180.0,0.01954]
[1752077151072,0.42336206,109190.0,109180.0,0.12166987]
[1752077151341,0.77600436,109190.0,109180.0,0.13696987]
[1752077152034,0.77600436,109190.0,109180.0,0.13896987]
[1752077152245,0.77600436,109190.0,109180.0,0.13696987]
[1752077152452,0.86744129,109190.0,109180.0,0.14096987]
[1752077152664,0.86844129,109190.0,109180.0,0.14096987]
[1752077152888,0.77700436,109190.0,109180.0,0.14096987]
[1752077153105,1.11903436,109190.0,109180.0,0.12454987]
[1752077153345,1.13413436,109190.0,109180.0,0.02154649]
[1752077153574,1.13413436,109190.0,109180.0,0.00404649]
[1752077153804,1.13413436,109190.0,109180.0,0.00204649]
[1752077153805,1.14867521,109190.0,109180.0,0.00204649]
[1752077154028,1.23911214,109190.0,109180.0,0.00204649]
[1752077154241,1.24011214,109190.0,109180.0,0.00404649]
[1752077154482,1.24011214,109190.0,109180.0,0.00204649]
[1752077154711,1.24111214,109190.0,109180.0,0.00204649]
[1752077155149,1.24278214,109190.0,109180.0,0.00204649]
[1752077155592,1.26049214,109190.0,109180.0,0.00204649]
[1752077156072,1.26049214,109190.0,109180.0,0.0191501]
[1752077156515,1.26050214,109190.0,109180.0,0.0191501]
[1752077158840,1.26050214,109190.0,109180.0,0.0355501]
[1752077159965,1.16906521,109190.0,109180.0,0.0355501]
[1752077160272,0.64514206,109190.0,109180.0,0.0407101]
[1752077160487,0.62576206,109190.0,109180.0,0.0570101]
[1752077160904,0.28576206,109190.0,109180.0,0.4096524]
[1752077161109,0.20348322,109190.0,109180.0,0.45850741]
[1752077161994,0.19432513,109190.0,109180.0,0.45850741]
[1752077162573,0.19432513,109190.0,109180.0,0.10586511]
[1752077162778,0.24604866,109190.0,109180.0,0.10586511]
[1752077164016,0.19432513,109190.0,109180.0,0.10586511]
[1752077166098,0.19432513,109190.0,109180.0,0.46766659]
[1752077166321,0.20348347,109190.0,109180.0,0.4414038]
[1752077167146,0.20348347,109190.0,109180.0,0.5811638]
[1752077171452,0.20348347,109190.0,109180.0,0.2285215]
[1752077171640,0.20348347,109190.0,109180.0,0.5811638]
[1752077173696,0.20348347,109190.0,109180.0,0.2285215]
[1752077173904,0.20348347,109190.0,109180.0,0.5811638]
[1752077177680,0.20348347,109190.0,109180.0,0.2285215]
[1752077177885,0.20348347,109190.0,109180.0,0.5811338]
[1752077191222,0.20348347,109190.0,109180.0,0.2284915]
[1752077191427,0.20348347,109190.0,109180.0,0.5811338]
[1752077191592,0.20348347,109190.0,109180.0,0.2284915]
[1752077191945,0.20348347,109190.0,109180.0,0.2119915]
[1752077192804,0.20348347,109190.0,109180.0,0.5800338]
[1752077193445,0.20348347,109190.0,109180.0,0.65819305]
[1752077193631,0.20348347,109190.0,109180.0,0.5800338]
[1752077195345,0.20348238,109190.0,109180.0,0.78153548]
[1752077195551,0.21264039,109190.0,109180.0,0.79069424]
[1752077195758,0.20348238,109190.0,109180.0,0.80901151]
[1752077195905,0.2126403,109190.0,109180.0,0.80901151]
[1752077196110,0.22179831,109190.0,109180.0,0.80901151]
[1752077196600,0.23095657,109190.0,109180.0,0.78153548]
[1752077196746,0.2217989,109190.0,109180.0,0.78153556]
[1752077196938,0.21264114,109190.0,109180.0,0.77249663]
[1752077197134,0.21264114,109190.0,109180.0,0.78165564]
[1752077197409,0.20348288,109190.0,109180.0,0.7908144]
[1752077197536,0.21264106,109190.0,109180.0,0.7908144]
[1752077197737,0.22179932,109190.0,109180.0,0.79997308]
[1752077197976,0.22179932,109190.0,109180.0,0.7908144]
[1752077198211,0.22179932,109190.0,109180.0,0.78165564]
[1752077198421,0.21264173,109190.0,109180.0,0.58927298]
[1752077198640,0.21264173,109190.0,109180.0,0.78161572]
[1752077198843,0.21264173,109190.0,109180.0,0.77245671]
[1752077199072,0.21264173,109190.0,109180.0,0.4404738]
[1752077199277,0.23145383,109190.0,109180.0,0.2223415]
[1752077199458,0.21888355,109190.0,109180.0,0.0725615]
[1752077199707,0.66494278,109190.0,109180.0,0.00204649]
[1752077199979,0.68175278,109190.0,109180.0,0.14176649]
[1752077200178,0.32911048,109190.0,109180.0,0.14184649]
[1752077200401,0.80071471,109190.0,109180.0,0.14184649]
[1752077201928,0.80071471,109190.0,109180.0,0.00204649]
[1752077202374,1.14071471,109190.0,109180.0,0.00204649]
[1752077202575,1.15525556,109190.0,109180.0,0.00204649]
[1752077207453,1.18821471,109190.0,109180.0,0.00204649]
[1752077208761,0.83557241,109190.0,109180.0,0.00204649]
[1752077208970,1.18821471,109190.0,109180.0,0.00204649]
[1752077213634,1.18818192,109190.0,109180.0,0.00204649]
[1752077214066,1.32810192,109190.0,109180.0,0.00204649]
[1752077215765,0.97545962,109190.0,109180.0,0.00204649]
[1752077215975,1.32810192,109190.0,109180.0,0.00204649]
[1752077226605,0.97545962,109190.0,109180.0,0.00204649]
[1752077226811,1.32810192,109190.0,109180.0,0.00204649]
[1752077227057,0.72730269,109190.0,109180.0,0.00204649]
[1752077227274,0.66244548,109190.0,109180.0,0.03877649]
[1752077227491,0.32244548,109190.0,109180.0,0.39141879]
[1752077227716,0.29492048,109190.0,109180.0,0.03877649]
[1752077228977,0.32379936,109190.0,109180.0,0.03877649]
[1752077236386,0.29492048,109190.0,109180.0,0.03877649]
[1752077241076,0.29492048,109190.0,109180.0,0.02237649]
[1752077242125,0.29492048,109190.0,109180.0,0.03897649]
[1752077242622,0.20348355,109190.0,109180.0,0.5805138]
[1752077247083,0.20348355,109190.0,109180.0,0.4404738]
[1752077247413,0.34758785,109190.0,109180.0,0.16233649]
[1752077247624,0.29492048,109190.0,109180.0,0.16233649]
[1752077249875,0.29492048,109190.0,109180.0,0.02237649]
[1752077250023,0.29492048,109190.0,109180.0,0.16237649]
[1752077252274,0.29492048,109190.0,109180.0,0.02237649]
[1752077252690,0.29492048,109190.0,109180.0,0.16229649]
[1752077252896,0.30558305,109190.0,109180.0,0.16229649]
[1752077254035,0.29492048,109190.0,109180.0,0.16229649]
[1752077255496,0.3279039,109190.0,109180.0,0.16229649]
[1752077256049,0.3279039,109190.0,109180.0,0.02237649]
[1752077256266,0.3279039,109190.0,109180.0,0.16225649]
[1752077261159,0.3279039,109190.0,109180.0,0.53029879]
[1752077261383,0.22179907,109190.0,109180.0,0.52860879]
[1752077261601,0.22179907,109190.0,109180.0,0.78065556]
[1752077261848,0.21264131,109190.0,109180.0,0.78065564]
[1752077262000,0.21264131,109190.0,109180.0,0.80698411]
[1752077263624,0.20348339,109190.0,109180.0,0.79782518]
[1752077264446,0.19432521,109190.0,109180.0,0.77950707]
[1752077264645,0.19432521,109190.0,109180.0,0.78866625]
[1752077265233,0.19432521,109190.0,109180.0,0.59632334]
[1752077265497,0.18516695,109190.0,109180.0,0.59632334]
[1752077266103,0.18516695,109190.0,109180.0,0.77950707]
[1752077266385,0.18516695,109190.0,109180.0,0.78866617]
[1752077266590,0.18516695,109190.0,109180.0,0.7978251]
[1752077267941,0.19432513,109190.0,109180.0,0.7978251]
[1752077268151,0.19432513,109190.0,109180.0,0.80698378]
[1752077268345,0.21264131,109190.0,109180.0,0.80698378]
[1752077268560,0.01115767,109190.0,109180.0,0.9075793]
[1752077268748,0.02947352,109190.0,109180.0,0.9075793]
[1752077268951,0.02031551,109190.0,109180.0,0.9075793]
[1752077269568,0.02947352,109190.0,109180.0,0.9075793]
[1752077270499,0.002,109190.0,109180.0,0.9075793]
[1752077270704,0.002,109190.0,109180.0,1.00754268]
[1752077271107,0.002,109190.0,109180.0,1.09897961]
[1752077271444,0.002,109190.0,109180.0,1.43897961]
[1752077271656,0.001,109190.0,109180.0,1.43697961]
[1752077271875,0.002,109190.0,109180.0,1.43997961]
[1752077272512,0.001,109190.0,109180.0,1.43997961]
[1752077272720,0.001,109190.0,109180.0,1.44197961]
[1752077276572,0.001,109190.0,109180.0,1.30209961]
[1752077276778,0.01931543,109190.0,109180.0,0.85802038]
[1752077276975,0.01931543,109190.0,109180.0,1.35038268]
[1752077278032,0.01015759,109190.0,109180.0,1.35038268]
[1752077278464,0.001,109190.0,109180.0,1.35038268]
[1752077279230,0.01015759,109190.0,109180.0,1.35038268]
[1752077280758,0.001,109190.0,109180.0,1.35038268]
[1752077282035,0.001,109190.0,109180.0,1.21066268]
[1752077282236,0.001,109190.0,109180.0,1.35038268]
[1752077284254,0.01015767,109190.0,109180.0,1.35038268]
[1752077284633,0.001,109190.0,109180.0,1.35038268]
[1752077284839,0.001,109190.0,109180.0,1.44181961]
[1752077285446,0.01015759,109190.0,109180.0,1.44181961]
[1752077285627,0.01015759,109190.0,109180.0,1.35038268]
[1752077286758,0.001,109190.0,109180.0,1.35038268]
[1752077288937,0.01015776,109190.0,109180.0,1.35026268]
[1752077289136,0.001,109190.0,109180.0,1.35026268]
[1752077289661,0.001,109190.0,109180.0,1.21061222]
[1752077289662,0.01015767,109190.0,109180.0,1.21061222]
[1752077290015,0.02847344,109190.0,109180.0,1.35021222]
[1752077290225,0.02847335,109190.0,109180.0,1.35021222]
[1752077290435,0.01931543,109190.0,109180.0,1.35021222]
[1752077291460,0.01015767,109190.0,109180.0,1.35021222]
[1752077291850,0.01015767,109190.0,109180.0,0.99756992]
[1752077292045,0.01015767,109190.0,109180.0,1.35021222]
[1752077292250,0.01931551,109190.0,109180.0,1.35021222]
[1752077294140,0.01015767,109190.0,109180.0,1.35021222]
[1752077294380,0.01015767,109190.0,109180.0,1.33309314]
[1752077294789,0.001,109190.0,109180.0,1.33309314]
[1752077295041,0.001,109190.0,109180.0,1.42453007]
[1752077296459,0.001,109190.0,109180.0,1.92717237]
[1752077296808,0.001,109190.0,109180.0,1.95468637]
[1752077297839,0.001,109190.0,109180.0,1.60204407]
[1752077298249,0.02746865,109210.0,109200.0,0.23114169]
[1752077298454,0.01831224,109210.0,109200.0,0.7681749]
[1752077298656,0.02746865,109210.0,109200.0,0.7681749]
[1752077299510,0.02846865,109210.0,109200.0,0.7681749]
[1752077300094,0.02031224,109210.0,109200.0,0.7681749]
[1752077300290,0.02946865,109210.0,109200.0,0.7681749]
[1752077300498,0.03862515,109210.0,109200.0,0.7681749]
[1752077300693,0.02946865,109210.0,109200.0,0.7681749]
[1752077301312,0.04578173,109210.0,109200.0,0.7681749]
[1752077301709,0.01831224,109210.0,109200.0,0.78030603]
[1752077302118,0.02746865,109210.0,109200.0,0.73551512]
[1752077303089,0.01831224,109210.0,109200.0,0.73551512]
[1752077303229,0.02746857,109210.0,109200.0,0.73551512]
[1752077303444,0.01831224,109210.0,109200.0,0.73551512]
[1752077303645,0.01831224,109210.0,109200.0,0.79461031]
[1752077303840,0.03662515,109210.0,109200.0,0.78547918]
[1752077304080,0.21975856,109210.0,109200.0,0.78547918]
[1752077304283,0.22891514,109210.0,109200.0,0.78547918]
[1752077304444,0.02746865,109210.0,109200.0,0.78547918]
[1752077304640,0.01831224,109210.0,109200.0,0.78547918]
[1752077305481,0.00915599,109210.0,109200.0,0.78547918]
[1752077305690,0.01831224,109210.0,109200.0,0.78547918]
[1752077305899,0.02746865,109210.0,109200.0,0.78547918]
[1752077306318,0.00915599,109210.0,109200.0,0.78547918]
[1752077306504,0.01831224,109210.0,109200.0,0.78547918]
[1752077306686,0.02746856,109210.0,109200.0,0.78547918]
[1752077307518,0.03662506,109210.0,109200.0,0.78547918]
[1752077307726,0.01831215,109210.0,109200.0,0.78547918]
[1752077307932,0.02746856,109210.0,109200.0,0.78547918]
[1752077309723,0.02746856,109210.0,109200.0,0.72638399]
[1752077310503,0.01831215,109210.0,109200.0,0.72638399]
[1752077310707,0.0274684,109210.0,109200.0,0.72638399]
[1752077311736,0.03662464,109210.0,109200.0,0.72638399]
[1752077312058,0.21975805,109210.0,109200.0,0.72638399]
[1752077312261,0.22891531,109210.0,109200.0,0.34918477]
[1752077312483,0.23585923,109210.0,109200.0,0.70182707]
[1752077312680,0.22670307,109210.0,109200.0,0.71098432]
[1752077312884,0.22670307,109210.0,109200.0,0.72014132]
[1752077313084,0.03441257,109210.0,109200.0,0.83683517]
[1752077313283,0.01831257,109210.0,109200.0,0.83683517]
[1752077313491,0.03662565,109210.0,109200.0,0.83683517]
[1752077313718,0.23585906,109210.0,109200.0,0.83683517]
[1752077313908,0.23585906,109210.0,109200.0,0.82767825]
[1752077314336,0.23585906,109210.0,109200.0,0.73624132]
[1752077314661,0.03441207,109210.0,109200.0,0.74539824]
[1752077314857,0.0274684,109210.0,109200.0,0.74539824]
[1752077315062,0.0366249,109210.0,109200.0,0.74539824]
[1752077315968,0.21975898,109210.0,109200.0,0.36528485]
[1752077316172,0.23605898,109210.0,109200.0,0.72708415]
[1752077316379,0.02746899,109210.0,109200.0,0.827678]
[1752077317037,0.21060173,109210.0,109200.0,0.81852108]
[1752077317236,0.23475823,109210.0,109200.0,0.81852116]
[1752077317563,0.23475823,109210.0,109200.0,0.82767816]
[1752077317773,0.05162473,109210.0,109200.0,0.83683508]
[1752077318102,0.2439154,109210.0,109200.0,0.81157816]
[1752077318306,0.23475924,109210.0,109200.0,0.81157816]
[1752077319174,0.04246865,109210.0,109200.0,0.82073508]
[1752077319382,0.05162515,109210.0,109200.0,0.82073508]
[1752077319620,0.05162515,109210.0,109200.0,0.46809278]
[1752077319836,0.05162515,109210.0,109200.0,0.82073508]
[1752077320238,0.05162515,109210.0,109200.0,0.83693508]
[1752077320698,0.24391514,109210.0,109200.0,0.82777816]
[1752077320872,0.24391582,109210.0,109200.0,0.82777816]
[1752077321255,0.24391582,109210.0,109200.0,0.47513586]
[1752077321505,0.23475957,109210.0,109200.0,0.47513586]
[1752077321710,0.22766316,109210.0,109200.0,0.05185501]
[1752077321911,0.57942238,109210.0,109200.0,0.05185501]
[1752077322056,0.57942238,109210.0,109200.0,0.19129501]
[1752077322263,0.5886886,109210.0,109200.0,0.05185501]
[1752077322464,0.5886886,109210.0,109200.0,0.19133501]
[1752077323074,0.2344163,109210.0,109200.0,0.19133501]
[1752077323551,0.2344163,109210.0,109200.0,0.05185501]
[1752077323755,0.2344163,109210.0,109200.0,0.19133501]
[1752077325154,0.2323563,109210.0,109200.0,0.19133501]
[1752077325358,0.2344163,109210.0,109200.0,0.19133501]
[1752077329990,0.2186163,109210.0,109200.0,0.19133501]
[1752077332120,0.2337163,109210.0,109200.0,0.19133501]
[1752077332310,0.31093687,109210.0,109200.0,0.19133501]
[1752077332756,0.5863586,109210.0,109200.0,0.19133501]
[1752077333003,0.67942553,109210.0,109200.0,0.003]
[1752077333208,0.67942553,109210.0,109200.0,0.14248]
[1752077334101,0.67942553,109210.0,109200.0,0.14264]
[1752077337941,0.67942553,109210.0,109200.0,0.13964]
[1752077338150,0.68042553,109210.0,109200.0,0.13964]
[1752077338356,0.68142553,109210.0,109200.0,0.13964]
[1752077342090,0.68142553,109210.0,109190.0,0.19145501]
[1752077342091,0.19230752,109200.0,109190.0,0.19145501]
[1752077342293,0.20998513,109190.0,109180.0,0.0694915]
[1752077342502,0.56262743,109190.0,109180.0,0.16945488]
[1752077342709,0.56262743,109190.0,109180.0,0.14886488]
[1752077342928,0.56262743,109190.0,109180.0,0.0489015]
[1752077343329,0.57852743,109190.0,109180.0,4.649e-05]
[1752077343569,0.66996436,109190.0,109180.0,4.649e-05]
[1752077343787,0.31732206,109190.0,109180.0,4.649e-05]
[1752077343904,0.30142206,109190.0,109180.0,4.649e-05]
[1752077344887,0.30242206,109190.0,109180.0,4.649e-05]
[1752077345283,0.65506436,109190.0,109180.0,4.649e-05]
[1752077345692,0.30242206,109190.0,109180.0,4.649e-05]
[1752077346527,0.65506436,109190.0,109180.0,4.649e-05]
[1752077347511,0.30242206,109190.0,109180.0,4.649e-05]
[1752077347887,0.67026436,109190.0,109180.0,4.649e-05]
[1752077348306,0.76170129,109190.0,109180.0,4.649e-05]
[1752077348709,0.67189436,109190.0,109180.0,4.649e-05]
[1752077349266,0.67026436,109190.0,109180.0,4.649e-05]
[1752077351829,0.31765206,109190.0,109180.0,4.649e-05]
[1752077352037,0.67029436,109190.0,109180.0,4.649e-05]
[1752077352932,0.31765206,109190.0,109180.0,4.649e-05]
[1752077353134,0.67029436,109190.0,109180.0,4.649e-05]
[1752077354317,0.65509436,109190.0,109180.0,4.649e-05]
[1752077354927,0.65509436,109190.0,109180.0,0.61419671]
[1752077354928,0.20248322,109190.0,109180.0,0.61419671]
[1752077355131,0.001,109190.0,109180.0,0.74025125]
[1752077355330,0.01931543,109190.0,109180.0,0.74940984]
[1752077356071,0.01931535,109190.0,109180.0,0.74940984]
[1752077356271,0.01831535,109190.0,109180.0,0.74940984]
[1752077356720,0.01831535,109190.0,109180.0,0.75240984]
[1752077356891,0.03663145,109190.0,109180.0,0.66097291]
[1752077357492,0.04578979,109190.0,109180.0,0.66097291]
[1752077357698,0.03663145,109190.0,109180.0,0.66097291]
[1752077357904,0.02747336,109190.0,109180.0,0.66097291]
[1752077358105,0.02747327,109190.0,109180.0,0.66097291]
[1752077358832,0.03663136,109190.0,109180.0,0.66097291]
[1752077359900,0.04578954,109190.0,109180.0,0.66097291]
[1752077360941,0.22895724,109190.0,109180.0,0.64265564]
[1752077361180,0.21979948,109190.0,109180.0,0.64265564]
[1752077361392,0.21979948,109190.0,109180.0,0.65181449]
[1752077362888,0.21979948,109190.0,109180.0,0.67013184]
[1752077363438,0.21979948,109190.0,109180.0,0.31748954]
[1752077363646,0.21979948,109190.0,109180.0,0.67013184]
[1752077364668,0.21979948,109190.0,109180.0,0.66097325]
[1752077364871,0.21064156,109190.0,109180.0,0.66097325]
[1752077365430,0.21064156,109190.0,109180.0,0.63349671]
[1752077365629,0.21064156,109190.0,109180.0,0.79205449]
[1752077366041,0.21064156,109190.0,109180.0,0.80121325]
[1752077366257,0.21064156,109190.0,109180.0,0.81037193]
[1752077366662,0.01831593,109190.0,109180.0,0.81037134]
[1752077366906,0.01831593,109190.0,109180.0,0.90180827]
[1752077367433,0.01831543,109190.0,109180.0,0.90180827]
[1752077367563,0.02747344,109190.0,109180.0,0.90180827]
[1752077368163,0.03663162,109190.0,109180.0,0.90180827]
[1752077368474,0.22895683,109190.0,109180.0,0.76156827]
[1752077368661,0.04578988,109190.0,109180.0,0.45764904]
[1752077368872,0.03663162,109190.0,109180.0,0.81029134]
[1752077370605,0.02747344,109190.0,109180.0,0.81029134]
[1752077370808,0.00915759,109190.0,109180.0,0.81029134]
[1752077371471,0.02747116,109200.0,109190.0,0.28728366]
[1752077371639,0.02747116,109200.0,109190.0,0.74736289]
[1752077371824,0.02747116,109200.0,109190.0,0.75044289]
[1752077372447,0.0366285,109200.0,109190.0,0.89060289]
[1752077372631,0.02747116,109200.0,109190.0,0.89060289]
[1752077372854,0.01831391,109200.0,109190.0,0.89060289]
[1752077373065,0.00915683,109200.0,109190.0,0.88144463]
[1752077373805,0.01831383,109200.0,109190.0,0.88144463]
[1752077373946,0.03662825,109200.0,109190.0,0.7899677]
[1752077374153,0.03662816,109200.0,109190.0,0.7899677]
[1752077374350,0.02747091,109200.0,109190.0,0.7899677]
[1752077374555,0.03662825,109200.0,109190.0,0.7899677]
[1752077375768,0.02747091,109200.0,109190.0,0.7899677]
[1752077376115,0.02747091,109200.0,109190.0,0.88140463]
[1752077376309,0.03662816,109200.0,109190.0,0.88140463]
[1752077377084,0.0457855,109200.0,109190.0,0.88140463]
[1752077377282,0.03662816,109200.0,109190.0,0.88140463]
[1752077377726,0.02747091,109200.0,109190.0,0.88140463]
[1752077378346,0.00915641,109210.0,109200.0,0.27185953]
[1752077378557,0.1922729,109220.0,109210.0,0.243175]
[1752077378758,0.1922729,109220.0,109210.0,0.76452371]
[1752077378961,0.1922729,109220.0,109210.0,0.4118815]
[1752077380164,0.1922729,109220.0,109210.0,0.4119915]
[1752077380931,0.20142848,109220.0,109210.0,0.42114783]
[1752077381177,0.21058328,109220.0,109210.0,0.78294629]
[1752077381417,0.21058328,109220.0,109210.0,0.87438322]
[1752077381719,0.21058328,109220.0,109210.0,0.8998393]
[1752077381925,0.21973911,109220.0,109210.0,0.8998393]
[1752077382483,0.21973911,109220.0,109210.0,0.8835393]
[1752077382672,0.21973911,109220.0,109210.0,0.87438322]
[1752077383382,0.21973911,109220.0,109210.0,0.86522706]
[1752077383602,0.21058379,109220.0,109210.0,0.86522706]
[1752077383801,0.21058379,109220.0,109210.0,0.87438331]
[1752077384443,0.02746715,109220.0,109210.0,0.88353939]
[1752077384651,0.01831132,109220.0,109210.0,0.88353939]
[1752077384845,0.0183109,109220.0,109210.0,0.8998388]
[1752077385177,0.00915507,109220.0,109210.0,0.80840187]
[1752077385378,0.02746564,109220.0,109210.0,0.80840187]
[1752077385580,0.04577671,109220.0,109210.0,0.80840187]
[1752077386008,0.02746564,109220.0,109210.0,0.80840187]
[1752077386223,0.00915507,109220.0,109210.0,0.80840187]
[1752077386419,0.01831023,109220.0,109210.0,0.8998388]
[1752077386624,0.01831023,109220.0,109210.0,0.99980218]
[1752077387228,0.02746555,109220.0,109210.0,0.99980218]
[1752077387429,0.03662113,109220.0,109210.0,1.00180218]
[1752077387647,0.04577679,109220.0,109210.0,0.91036525]
[1752077387872,0.03662113,109220.0,109210.0,0.91036525]
[1752077388697,0.04677679,109220.0,109210.0,0.91436525]
[1752077393242,0.04677746,109220.0,109210.0,0.91436525]
[1752077393450,0.2298941,109220.0,109210.0,0.91436525]
[1752077393633,0.04677746,109220.0,109210.0,0.91436525]
[1752077393790,0.03762172,109220.0,109210.0,0.91436525]
[1752077394793,0.22073836,109220.0,109210.0,0.89605318]
[1752077395009,0.22073836,109220.0,109210.0,0.87975318]
[1752077395210,0.22073836,109220.0,109210.0,0.88890934]
[1752077396135,0.22073836,109220.0,109210.0,0.89806542]
[1752077396321,0.2298941,109220.0,109210.0,0.89806542]
[1752077397719,0.04677746,109220.0,109210.0,0.89806542]
[1752077397987,0.03762172,109220.0,109210.0,0.89806542]
[1752077398575,0.02846606,109220.0,109210.0,0.89806542]
[1752077398978,0.03762172,109220.0,109210.0,0.89806542]
[1752077399698,0.2298941,109220.0,109210.0,0.89806542]
[1752077400338,0.22073894,109220.0,109210.0,0.88890934]
[1752077401477,0.02846656,109220.0,109210.0,0.89806542]
[1752077402622,0.2115832,109220.0,109210.0,0.89806542]
[1752077402829,0.0376223,109220.0,109210.0,0.89806542]
[1752077403419,0.22073894,109220.0,109210.0,0.89806542]
[1752077404096,0.22989477,109220.0,109210.0,0.89806542]
[1752077404427,0.0376223,109220.0,109210.0,0.89806542]
[1752077405183,0.22073894,109220.0,109210.0,0.89806542]
[1752077406501,0.02846656,109220.0,109210.0,0.89806542]
[1752077407203,0.2115832,109220.0,109210.0,0.89806542]
[1752077407404,0.22073894,109220.0,109210.0,0.89806542]
[1752077409365,0.0376223,109220.0,109210.0,0.89806542]
[1752077413167,0.02846656,109220.0,109210.0,0.89806542]
[1752077413589,0.0193109,109220.0,109210.0,0.98950235]
[1752077414233,0.02846656,109220.0,109210.0,0.98950235]
[1752077415028,0.02846656,109220.0,109210.0,0.98922772]
[1752077415389,0.0193109,109220.0,109210.0,0.98922772]
[1752077415560,0.01931023,109220.0,109210.0,1.35819539]
[1752077415775,0.02846564,109220.0,109210.0,1.00582772]
[1752077416178,0.01931023,109220.0,109210.0,1.00582772]
[1752077416416,0.02846555,109220.0,109210.0,1.00582772]
[1752077416779,0.03762104,109220.0,109210.0,1.00582772]
[1752077417316,0.02846555,109220.0,109210.0,1.00582772]
[1752077419079,0.03762104,109220.0,109210.0,1.00582772]
[1752077419282,0.02846555,109220.0,109210.0,1.00582772]
[1752077420467,0.03762096,109220.0,109210.0,1.00582772]
[1752077421527,0.03762096,109220.0,109210.0,0.98922772]
[1752077421955,0.04677662,109220.0,109210.0,0.98605772]
[1752077422170,0.04677654,109220.0,109210.0,0.98915772]
[1752077423585,0.03762096,109220.0,109210.0,0.98915772]
[1752077424006,0.04677654,109220.0,109210.0,0.98915772]
[1752077424412,0.04677645,109220.0,109210.0,0.98915772]